fUSD/lending_fUSD_20250217
["ID","MTS","AMOUNT","RATE_DAILY","PERIOD"]
[353364663,1739800232745,-150.0,0.00013686,2]
[353364666,1739800232754,-4000.0,0.0001369,2]
[353364669,1739800232763,-150.0,0.00013691,2]
[353364672,1739800232771,-150.0,0.00013692,2]
[353364675,1739800232780,-968.199,0.00013696,2]
[353364678,1739800232790,-1099.66895685,0.00013697,2]
[353364680,1739800232799,-200.0,0.00013697,2]
[353364682,1739800232808,-1578.0,0.00013698,2]
[353364684,1739800232818,-12932.79139962,0.00013698,3]
[353364690,1739800232863,-755.45977828,0.00013698,3]
[353364692,1739800232874,-284.169996,0.00013698,3]
[353364695,1739800232885,-1842.72328551,0.00013698,3]
[353364710,1739800233029,-3282.33897135,0.00013698,3]
[353364713,1739800233040,-13518.06271111,0.00013698,3]
[353364715,1739800233053,-4429.29225767,0.00013698,3]
[353364717,1739800233068,-4629.5304814,0.00013698,3]
[353364721,1739800233092,-320.29041264,0.00013698,3]
[353364750,1739800237702,-150.0,0.00013559,2]
[353364751,1739800237711,-150.0,0.00013572,2]
[353364753,1739800237721,-150.0,0.00013575,2]
[353364754,1739800237730,-150.0,0.00013579,2]
[353364756,1739800237739,-150.0,0.0001358,2]
[353364758,1739800237748,-150.0,0.0001358,2]
[353364760,1739800237757,-150.0,0.00013582,2]
[353364762,1739800237766,-150.0,0.00013586,2]
[353364764,1739800237775,-150.0,0.00013586,2]
[353364766,1739800237785,-150.0,0.00013588,2]
[353364768,1739800237794,-150.0,0.00013598,2]
[353364770,1739800237804,-150.0,0.00013599,2]
[353364772,1739800237813,-150.0,0.00013614,2]
[353364774,1739800237822,-150.0,0.00013614,2]
[353364776,1739800237831,-150.0,0.00013617,2]
[353364778,1739800237840,-150.0,0.00013618,2]
[353364780,1739800237849,-150.0,0.00013623,2]
[353364782,1739800237859,-150.0,0.00013628,2]
[353364784,1739800237868,-150.0,0.00013636,2]
[353364786,1739800237878,-150.0,0.00013639,2]
[353364788,1739800237888,-150.0,0.00013646,2]
[353364790,1739800237898,-150.0,0.00013654,2]
[353364792,1739800237907,-150.0,0.00013654,2]
[353364794,1739800237916,-150.0,0.00013659,2]
[353364796,1739800237925,-150.0,0.0001366,2]
[353364798,1739800237934,-150.0,0.0001367,2]
[353364800,1739800237944,-150.0,0.00013671,2]
[353364802,1739800237953,-150.0,0.00013685,2]
[353364805,1739800237964,-274.18371666,0.00013698,3]
[353364807,1739800237975,-43760.42196874,0.00013698,3]
[353364813,1739800238013,-150.0,0.00013639,2]
[353364816,1739800238023,-4034.156181,0.00013698,3]
[353364822,1739800238053,-150.0,0.00013676,2]
[353364824,1739800238063,-150.0,0.00013693,2]
[353364826,1739800238072,-24750.29541261,0.00013698,3]
[353364828,1739800238084,-2516.00545635,0.00013698,3]
[353364830,1739800238095,-490.36197175,0.00013698,3]
[353364833,1739800238106,-1049.99999,0.00013698,3]
[353364835,1739800238117,-494.369955,0.00013698,3]
[353364837,1739800238128,-268.28055403,0.00013698,3]
[353364841,1739800238157,-150.0,0.0001364,2]
[353364843,1739800238166,-889.58900093,0.00013698,3]
[353365000,1739800239979,-150.0,0.00013568,2]
[353365001,1739800239988,-150.0,0.00013572,2]
[353365002,1739800239998,-150.0,0.00013582,2]
[353365003,1739800240007,-150.0,0.00013586,2]
[353365004,1739800240017,-150.0,0.00013588,2]
[353365005,1739800240026,-111.9736156,0.00013596,2]
[353365006,1739800240108,-38.0263844,0.00013596,2]
[353365007,1739800240117,-320.14584843,0.00013598,2]
[353365008,1739800240127,-150.0,0.00013599,2]
[353365009,1739800240136,-150.0,0.00013603,2]
[353365010,1739800240146,-53.17626967,0.00013605,2]
[353365011,1739800240284,-150.0,0.00013604,2]
[353365012,1739800240293,-96.82373033,0.00013605,2]
[353365013,1739800240302,-150.0,0.00013638,2]
[353365014,1739800240311,-64.03432469,0.00013647,2]
[353365015,1739800240323,-85.96567531,0.00013647,2]
[353365016,1739800240332,-150.0,0.0001365,2]
[353365017,1739800240341,-150.0,0.00013651,2]
[353365018,1739800240351,-150.0,0.00013664,2]
[353365019,1739800240360,-150.0,0.00013669,2]
[353365020,1739800240370,-150.0,0.00013672,2]
[353365021,1739800240379,-150.0,0.00013683,2]
[353365022,1739800240389,-150.0,0.00013697,2]
[353365023,1739800240399,-491.08843674,0.00013698,3]
[353365024,1739800240430,-150.0,0.0001364,2]
[353365025,1739800240440,-2992.80000004,0.00013698,3]
[353365026,1739800240452,-4090.91701531,0.00013698,3]
[353365041,1739800242922,-150.0,0.00013582,2]
[353365042,1739800242932,-150.0,0.0001362,2]
[353365043,1739800242942,-150.0,0.00013634,2]
[353365044,1739800242952,-202.519868,0.00013655,2]
[353365045,1739800242964,-129.14795889,0.00013655,2]
[353365046,1739800242973,-150.0,0.00013662,2]
[353365047,1739800242983,-150.0,0.00013696,2]
[353365048,1739800242992,-59999.46256309,0.00013698,3]
[353365137,1739800246329,-150.0,0.00013666,2]
[353365139,1739800246338,-222.18,0.00013698,3]
[353365144,1739800246373,-964.4989782,0.00013698,3]
[353365149,1739800246407,-527.39856548,0.00013698,3]
[353365151,1739800246424,-739.34634792,0.00013698,3]
[353365181,1739800329799,5000.0,0.00013,20]
[353365182,1739800797666,500.0,0.0002,120]
[353365183,1739800804428,500.0,0.0002,120]
[353365184,1739800805347,500.0,0.0002,120]
[353365185,1739800806227,500.0,0.0002,120]
[353365186,1739800806879,500.0,0.0002,120]
[353365187,1739800807596,500.0,0.0002,120]
[353365188,1739800808532,500.0,0.0002,120]
[353365189,1739800809141,500.0,0.0002,120]
[353365190,1739800809884,500.0,0.0002,120]
[353365191,1739800810517,500.0,0.0002,120]
[353365192,1739800811149,500.0,0.0002,120]
[353365193,1739800812117,500.0,0.0002,120]
[353365194,1739800812499,500.0,0.0002,120]
[353365195,1739800814463,500.0,0.0002,120]
[353365196,1739800815835,500.0,0.0002,120]
[353365197,1739800816606,500.0,0.0002,120]
[353365198,1739800817391,500.0,0.0002,120]
[353365199,1739800817992,500.0,0.0002,120]
[353365200,1739800818688,500.0,0.0002,120]
[353365201,1739800819315,500.0,0.0002,120]
[353365202,1739800820232,500.0,0.0002,120]
[353365203,1739800820952,500.0,0.0002,120]
[353365204,1739800821793,500.0,0.0002,120]
[353365205,1739800822503,500.0,0.0002,120]
[353365206,1739800823421,500.0,0.0002,120]
[353365207,1739800824275,500.0,0.0002,120]
[353365208,1739800824720,500.0,0.0002,120]
[353365209,1739800825587,500.0,0.0002,120]
[353365210,1739800826290,500.0,0.0002,120]
[353365211,1739800826988,500.0,0.0002,120]
[353365212,1739800827725,500.0,0.0002,120]
[353365213,1739800828363,500.0,0.0002,120]
[353365214,1739800829016,500.0,0.0002,120]
[353365215,1739800829619,500.0,0.0002,120]
[353365216,1739800830180,500.0,0.0002,120]
[353365217,1739800830688,500.0,0.0002,120]
[353365218,1739800831121,500.0,0.0002,120]
[353365219,1739800831482,500.0,0.0002,120]
[353365220,1739800831972,500.0,0.0002,120]
[353365221,1739800832301,500.0,0.0002,120]
[353365222,1739800833069,500.0,0.0002,120]
[353365223,1739800833300,500.0,0.0002,120]
[353365224,1739800833784,500.0,0.0002,120]
[353365225,1739800834313,500.0,0.0002,120]
[353365226,1739800834901,500.0,0.0002,120]
[353365227,1739800835366,500.0,0.0002,120]
[353365228,1739800836355,500.0,0.0002,120]
[353365229,1739800837145,500.0,0.0002,120]
[353365230,1739800837787,500.0,0.0002,120]
[353365231,1739800838669,500.0,0.0002,120]
[353365232,1739800839288,500.0,0.0002,120]
[353365233,1739800840140,500.0,0.0002,120]
[353365234,1739800840834,500.0,0.0002,120]
[353365235,1739800855311,500.0,0.0002,120]
[353365236,1739800864824,301.00152057,0.0002,120]
[353366048,1739801355282,-19600.0,8.836e-05,2]
[353366069,1739801432179,-4.415,8.836e-05,2]
[353366070,1739801432188,-550.0,0.0001,2]
[353366071,1739801432198,-258.66,0.00010137,2]
[353366072,1739801432208,-348.23752077,0.00010413,2]
[353366073,1739801432217,-681.4,0.00010716,2]
[353366074,1739801432227,-494.95,0.00011154,2]
[353366075,1739801432236,-498.24,0.00011154,2]
[353366076,1739801432246,-500.0,0.00011154,2]
[353366077,1739801432258,-500.0,0.00011154,2]
[353366078,1739801432268,-500.0,0.00011154,2]
[353366079,1739801432277,-600.0,0.00012,2]
[353366080,1739801432287,-500.0,0.00012524,2]
[353366081,1739801432297,-500.0,0.00012524,2]
[353366082,1739801432307,-1000.0,0.00012544,2]
[353366083,1739801432317,-843.63,0.00012544,2]
[353366084,1739801432327,-394.61,0.00012544,2]
[353366085,1739801432337,-191.84,0.00012544,2]
[353366086,1739801432347,-250.0,0.00012634,2]
[353366087,1739801432356,-681.4,0.0001298,2]
[353366088,1739801432366,-205.0,0.0001309,2]
[353366089,1739801432376,-205.0,0.0001328,2]
[353366090,1739801432385,-200.0,0.000133,4]
[353366091,1739801432395,-500.0,0.000134,4]
[353366092,1739801432404,-186.9761477,0.00013424,2]
[353366093,1739801432414,-205.0,0.0001347,2]
[353366094,1739801432423,-876.45,0.00013488,2]
[353366095,1739801432433,-300.0,0.00013488,2]
[353366096,1739801432443,-439.11,0.00013488,2]
[353366097,1739801432453,-439.11,0.00013488,2]
[353366098,1739801432463,-439.11,0.00013488,2]
[353366099,1739801432472,-439.11,0.00013488,2]
[353366100,1739801432482,-986.71,0.00013488,2]
[353366101,1739801432491,-439.11,0.00013488,2]
[353366102,1739801432504,-986.71,0.00013488,2]
[353366103,1739801432513,-439.11,0.00013488,2]
[353366104,1739801432523,-986.71,0.00013488,2]
[353366105,1739801432533,-1567.38485757,0.000135,2]
[353366106,1739801432543,-1263.78715509,0.000135,2]
[353366107,1739801432552,-320.1458484,0.000135,2]
[353366108,1739801432562,-800.0,0.000135,4]
[353366109,1739801432571,-160.78932811,0.000135,2]
[353366110,1739801432580,-4881.51356306,0.00013524,2]
[353366111,1739801432592,-474.82116813,0.00013524,2]
[353366112,1739801432622,-2197.77007055,0.00013524,2]
[353366113,1739801432651,-1229.95234651,0.00013524,2]
[353366114,1739801432663,-757.8900005,0.00013524,2]
[353366115,1739801432675,-510.674481,0.00013524,2]
[353366116,1739801432686,-556.32756,0.00013524,2]
[353366117,1739801432708,-1248.44266962,0.00013524,2]
[353366286,1739801438458,-142.30895267,0.00013524,2]
[353366287,1739801438672,-13574.08012316,0.00013524,2]
[353366288,1739801438685,-4696.81938341,0.00013524,2]
[353366289,1739801438695,-1567.38485755,0.00013538,2]
[353366290,1739801438705,-1263.78715503,0.00013538,2]
[353366291,1739801438715,-150.0,0.00013553,2]
[353366292,1739801438724,-150.0,0.00013554,2]
[353366294,1739801438734,-1567.38485755,0.00013577,2]
[353366296,1739801438743,-1263.78715503,0.00013577,2]
[353366298,1739801438758,-150.0,0.00013586,2]
[353366299,1739801438767,-150.0,0.00013594,2]
[353366300,1739801438777,-150.0,0.00013594,2]
[353366301,1739801438787,-274.18371666,0.00013599,3]
[353366302,1739801438797,-85158.34010187,0.00013599,3]
[353366324,1739801440028,-969.20835258,0.00013599,3]
[353366325,1739801440040,-5898.49039425,0.00013599,3]
[353366326,1739801440051,-255.49044991,0.00013599,3]
[353366327,1739801440062,-819.93235748,0.00013599,3]
[353366328,1739801440074,-600.0,0.00013599,3]
[353366329,1739801440172,-1193756.36634842,0.00013599,3]
[353366330,1739801440182,-300.0,0.00013599,2]
[353366331,1739801440192,-300.0,0.00013599,2]
[353366332,1739801440202,-578928.17736549,0.000136,3]
[353366333,1739801440211,-170086.39165001,0.000136,4]
[353366334,1739801440221,-151.0,0.000136,2]
[353366335,1739801440231,-151.0,0.000136,2]
[353366336,1739801440241,-161.026781,0.000136,2]
[353366337,1739801440250,-161.026781,0.000136,2]
[353366338,1739801440260,-151.0,0.000136,2]
[353366339,1739801440270,-151.0,0.000136,2]
[353366340,1739801440279,-4511.652976,0.000136,2]
[353366341,1739801440288,-151.0,0.000136,2]
[353366342,1739801440298,-151.0,0.000136,2]
[353366343,1739801440307,-1116.559896,0.000136,2]
[353366344,1739801440317,-151.0,0.000136,2]
[353366345,1739801440326,-1116.559896,0.000136,2]
[353366346,1739801440335,-151.0,0.000136,2]
[353366347,1739801440344,-151.0,0.000136,2]
[353366348,1739801440353,-235.047192,0.000136,2]
[353366349,1739801440363,-151.0,0.000136,2]
[353366350,1739801440372,-151.308706,0.000136,2]
[353366351,1739801440381,-190.26,0.000136,2]
[353366352,1739801440390,-151.0,0.000136,2]
[353366353,1739801440400,-151.308706,0.000136,2]
[353366354,1739801440410,-151.0,0.000136,2]
[353366355,1739801440421,-190.26,0.000136,2]
[353366356,1739801440432,-151.0,0.000136,2]
[353366357,1739801440442,-298.014245,0.000136,2]
[353366358,1739801440452,-151.0,0.000136,2]
[353366359,1739801440461,-193.16448,0.000136,2]
[353366360,1739801440471,-193.16448,0.000136,2]
[353366361,1739801440480,-151.0,0.000136,2]
[353366362,1739801440490,-238.976671,0.000136,2]
[353366363,1739801440500,-151.0,0.000136,2]
[353366364,1739801440509,-151.0,0.000136,2]
[353366365,1739801440528,-151.0,0.000136,2]
[353366366,1739801440539,-287.523626,0.000136,2]
[353366367,1739801440551,-151.0,0.000136,2]
[353366368,1739801440561,-151.0,0.000136,2]
[353366369,1739801440571,-151.0,0.000136,2]
[353366370,1739801440580,-255.450806,0.000136,2]
[353366371,1739801440592,-1000.0,0.000136,4]
[353366372,1739801440604,-150.0,0.00013602,2]
[353366373,1739801440615,-1567.38485755,0.00013615,2]
[353366374,1739801440625,-1263.78715503,0.00013615,2]
[353366375,1739801440635,-150.0,0.00013621,2]
[353366376,1739801440645,-150.0,0.00013627,2]
[353366377,1739801440654,-500.0,0.00013641,2]
[353366378,1739801440664,-150.0,0.00013643,2]
[353366379,1739801440674,-205.0,0.0001365,2]
[353366380,1739801440686,-1567.38485755,0.00013653,2]
[353366381,1739801440696,-1263.78715503,0.00013653,2]
[353366382,1739801440705,-150.0,0.00013663,2]
[353366383,1739801440715,-150.0,0.00013665,2]
[353366385,1739801440724,-774.559,0.00013668,2]
[353366386,1739801440733,-151.0,0.00013671,2]
[353366387,1739801440743,-151.0,0.00013671,2]
[353366388,1739801440752,-161.026781,0.00013671,2]
[353366389,1739801440762,-161.026781,0.00013671,2]
[353366390,1739801440772,-151.0,0.00013671,2]
[353366391,1739801440781,-151.0,0.00013671,2]
[353366392,1739801440790,-4511.652976,0.00013671,2]
[353366393,1739801440801,-151.0,0.00013671,2]
[353366394,1739801440811,-151.0,0.00013671,2]
[353366395,1739801440821,-1116.559896,0.00013671,2]
[353366396,1739801440831,-151.0,0.00013671,2]
[353366397,1739801440841,-1116.559896,0.00013671,2]
[353366398,1739801440851,-151.0,0.00013671,2]
[353366399,1739801440861,-151.0,0.00013671,2]
[353366400,1739801440871,-151.0,0.00013671,2]
[353366401,1739801440882,-151.308706,0.00013671,2]
[353366402,1739801440891,-190.26,0.00013671,2]
[353366403,1739801440900,-151.0,0.00013671,2]
[353366404,1739801440910,-151.308706,0.00013671,2]
[353366405,1739801440922,-151.0,0.00013671,2]
[353366406,1739801440931,-190.26,0.00013671,2]
[353366407,1739801440941,-151.0,0.00013671,2]
[353366408,1739801440951,-151.0,0.00013671,2]
[353366409,1739801440961,-193.16448,0.00013671,2]
[353366410,1739801440972,-193.16448,0.00013671,2]
[353366411,1739801440982,-205.286126,0.00013671,2]
[353366412,1739801440993,-151.0,0.00013671,2]
[353366413,1739801441004,-164.41053,0.00013671,2]
[353366414,1739801441027,-151.0,0.00013671,2]
[353366415,1739801441037,-151.0,0.00013671,2]
[353366416,1739801441047,-151.0,0.00013671,2]
[353366417,1739801441056,-151.0,0.00013671,2]
[353366418,1739801441066,-255.450806,0.00013671,2]
[353366419,1739801441077,-251253.0,0.00013671,2]
[353366420,1739801441090,-2576.0,0.00013671,2]
[353366421,1739801441100,-500.0,0.00013673,2]
[353366422,1739801441110,-150.02466446,0.00013673,2]
[353366423,1739801441120,-285.5383074,0.00013673,2]
[353366424,1739801441130,-267.23089262,0.00013673,2]
[353366425,1739801441139,-500.0,0.00013673,2]
[353366426,1739801441149,-500.0,0.00013673,2]
[353366427,1739801441158,-500.0,0.00013673,2]
[353366428,1739801441168,-230.01176739,0.0001368,2]
[353366429,1739801441177,-290.98490015,0.0001368,2]
[353366430,1739801441187,-1567.38485755,0.00013692,2]
[353366431,1739801441197,-1263.78715503,0.00013692,2]
[353366432,1739801441206,-150.0,0.00013693,2]
[353366433,1739801441216,-1008.99495767,0.00013696,3]
[353366434,1739801441225,-417.45744964,0.00013697,2]
[353366435,1739801441235,-300.0,0.00013697,2]
[353366436,1739801441244,-320.1458484,0.00013697,2]
[353366437,1739801441254,-293.83083226,0.00013698,2]
[353366438,1739801441263,-500.0,0.00013698,2]
[353366439,1739801441272,-500.0,0.00013698,2]
[353366440,1739801441282,-500.0,0.00013698,2]
[353366441,1739801441292,-502.11637147,0.00013698,2]
[353366442,1739801441301,-506.49593627,0.00013698,2]
[353366443,1739801441310,-500.72537632,0.00013698,2]
[353366444,1739801441319,-501.00528752,0.00013698,2]
[353366445,1739801441328,-502.97306693,0.00013698,2]
[353366446,1739801441338,-498.01887829,0.00013698,2]
[353366447,1739801441347,-500.0,0.00013698,2]
[353366448,1739801441357,-181.42906056,0.00013698,2]
[353366449,1739801441366,-500.0,0.00013698,2]
[353366450,1739801441375,-156.138995,0.00013698,2]
[353366451,1739801441385,-151.71724,0.00013698,2]
[353366452,1739801441394,-156.626831,0.00013698,2]
[353366453,1739801441404,-500.0,0.00013698,2]
[353366454,1739801441413,-500.0,0.00013698,2]
[353366455,1739801441423,-501.45004974,0.00013698,2]
[353366456,1739801441433,-415.85060618,0.00013698,2]
[353366457,1739801441442,-502.94955587,0.00013698,2]
[353366458,1739801441452,-500.0,0.00013698,2]
[353366459,1739801441461,-151.0,0.00013698,2]
[353366460,1739801441471,-151.0,0.00013698,2]
[353366461,1739801441480,-153.729477,0.00013698,2]
[353366462,1739801441490,-372.87309936,0.00013698,2]
[353366463,1739801441499,-500.0,0.00013698,2]
[353366464,1739801441757,-500.0,0.00013698,2]
[353366465,1739801441767,-398.50175486,0.00013698,2]
[353366466,1739801441777,-156.138995,0.00013698,2]
[353366467,1739801441787,-500.0,0.00013698,2]
[353366468,1739801441797,-933.48,0.00013698,2]
[353366469,1739801441806,-500.0,0.00013698,2]
[353366470,1739801441816,-200.0,0.00013698,2]
[353366471,1739801441826,-151.71724,0.00013698,2]
[353366472,1739801441835,-500.0,0.00013698,2]
[353366473,1739801441845,-792.13,0.00013698,2]
[353366474,1739801441855,-500.0,0.00013698,2]
[353366475,1739801441865,-382.70525934,0.00013698,2]
[353366476,1739801441874,-500.0,0.00013698,2]
[353366477,1739801441886,-500.0,0.00013698,2]
[353366478,1739801441895,-295.00741837,0.00013698,2]
[353366479,1739801441909,-500.0,0.00013698,2]
[353366480,1739801441918,-500.0,0.00013698,2]
[353366481,1739801441930,-500.0,0.00013698,2]
[353366482,1739801441941,-500.0,0.00013698,2]
[353366483,1739801441951,-500.0,0.00013698,2]
[353366484,1739801441962,-500.0,0.00013698,2]
[353366485,1739801441972,-500.0,0.00013698,2]
[353366486,1739801441984,-526.43,0.00013698,2]
[353366487,1739801441994,-500.0,0.00013698,2]
[353366488,1739801442003,-669.46,0.00013698,2]
[353366489,1739801442013,-768.73,0.00013698,2]
[353366490,1739801442022,-500.0,0.00013698,2]
[353366491,1739801442033,-500.0,0.00013698,2]
[353366492,1739801442043,-500.0,0.00013698,2]
[353366493,1739801442053,-151.0,0.00013698,2]
[353366494,1739801442062,-500.0,0.00013698,2]
[353366495,1739801442072,-500.0,0.00013698,2]
[353366496,1739801442083,-151.0,0.00013698,2]
[353366497,1739801442093,-151.0,0.00013698,2]
[353366498,1739801442103,-151.0,0.00013698,2]
[353366499,1739801442114,-151.0,0.00013698,2]
[353366500,1739801442124,-151.0,0.00013698,2]
[353366501,1739801442134,-212.69838752,0.00013698,2]
[353366502,1739801442144,-511.60130288,0.00013698,2]
[353366503,1739801442154,-500.0,0.00013698,2]
[353366504,1739801442163,-500.0,0.00013698,2]
[353366505,1739801442172,-500.0,0.00013698,2]
[353366506,1739801442182,-500.0,0.00013698,2]
[353366507,1739801442191,-856.36,0.00013698,2]
[353366508,1739801442201,-500.0,0.00013698,2]
[353366509,1739801442211,-500.0,0.00013698,2]
[353366510,1739801442220,-511.43657719,0.00013698,2]
[353366511,1739801442229,-500.0,0.00013698,2]
[353366512,1739801442239,-500.0,0.00013698,2]
[353366513,1739801442248,-500.0,0.00013698,2]
[353366514,1739801442258,-156.138995,0.00013698,2]
[353366515,1739801442267,-500.0,0.00013698,2]
[353366516,1739801442276,-151.71724,0.00013698,2]
[353366517,1739801442286,-386.53228627,0.00013698,2]
[353366518,1739801442295,-500.0,0.00013698,2]
[353366519,1739801442305,-500.0,0.00013698,2]
[353366520,1739801442314,-500.0,0.00013698,2]
[353366521,1739801442324,-500.0,0.00013698,2]
[353366522,1739801442333,-500.0,0.00013698,2]
[353366523,1739801442343,-500.0,0.00013698,2]
[353366524,1739801442353,-151.0,0.00013698,2]
[353366525,1739801442363,-500.0,0.00013698,2]
[353366526,1739801442373,-151.0,0.00013698,2]
[353366527,1739801442382,-151.0,0.00013698,2]
[353366528,1739801442392,-151.0,0.00013698,2]
[353366529,1739801442402,-500.0,0.00013698,2]
[353366530,1739801442412,-500.0,0.00013698,2]
[353366531,1739801442422,-500.0,0.00013698,2]
[353366532,1739801442431,-500.0,0.00013698,2]
[353366533,1739801442441,-500.0,0.00013698,2]
[353366534,1739801442450,-500.0,0.00013698,2]
[353366535,1739801442460,-500.0,0.00013698,2]
[353366536,1739801442470,-500.0,0.00013698,2]
[353366537,1739801442480,-500.0,0.00013698,2]
[353366538,1739801442489,-500.0,0.00013698,2]
[353366539,1739801442499,-151.0,0.00013698,2]
[353366540,1739801442509,-151.0,0.00013698,2]
[353366541,1739801442519,-151.0,0.00013698,2]
[353366542,1739801442529,-152.495933,0.00013698,2]
[353366543,1739801442538,-500.0,0.00013698,2]
[353366544,1739801442548,-158.316777,0.00013698,2]
[353366545,1739801442557,-158.316777,0.00013698,2]
[353366546,1739801442567,-158.316777,0.00013698,2]
[353366547,1739801442578,-158.316777,0.00013698,2]
[353366548,1739801442587,-158.316777,0.00013698,2]
[353366549,1739801442597,-158.316777,0.00013698,2]
[353366550,1739801442606,-500.0,0.00013698,2]
[353366551,1739801442616,-151.0,0.00013698,2]
[353366552,1739801442625,-158.316777,0.00013698,2]
[353366553,1739801442635,-151.0,0.00013698,2]
[353366554,1739801442645,-158.316777,0.00013698,2]
[353366555,1739801442654,-301.606785,0.00013698,2]
[353366556,1739801442664,-158.316777,0.00013698,2]
[353366557,1739801442675,-158.316777,0.00013698,2]
[353366558,1739801442685,-158.316777,0.00013698,2]
[353366559,1739801442694,-158.316777,0.00013698,2]
[353366560,1739801442704,-158.316777,0.00013698,2]
[353366561,1739801442714,-158.316777,0.00013698,2]
[353366562,1739801442724,-158.316777,0.00013698,2]
[353366563,1739801442735,-158.316777,0.00013698,2]
[353366564,1739801442746,-158.316777,0.00013698,2]
[353366565,1739801442756,-158.316777,0.00013698,2]
[353366566,1739801442766,-158.316777,0.00013698,2]
[353366567,1739801442776,-158.316782,0.00013698,2]
[353366568,1739801442786,-151.0,0.00013698,2]
[353366569,1739801442796,-500.0,0.00013698,2]
[353366570,1739801442806,-151.0,0.00013698,2]
[353366571,1739801442815,-151.0,0.00013698,2]
[353366572,1739801442825,-151.0,0.00013698,2]
[353366573,1739801442834,-151.0,0.00013698,2]
[353366574,1739801442844,-151.0,0.00013698,2]
[353366575,1739801442854,-151.0,0.00013698,2]
[353366576,1739801442864,-151.0,0.00013698,2]
[353366577,1739801442874,-179.477118,0.00013698,2]
[353366578,1739801442887,-500.0,0.00013698,2]
[353366579,1739801442896,-500.0,0.00013698,2]
[353366580,1739801442906,-500.0,0.00013698,2]
[353366581,1739801442916,-500.0,0.00013698,2]
[353366582,1739801442927,-500.0,0.00013698,2]
[353366583,1739801442937,-500.0,0.00013698,2]
[353366584,1739801442947,-500.0,0.00013698,2]
[353366585,1739801442956,-500.0,0.00013698,2]
[353366586,1739801442966,-500.0,0.00013698,2]
[353366587,1739801442977,-151.0,0.00013698,2]
[353366588,1739801442987,-151.0,0.00013698,2]
[353366589,1739801442996,-151.0,0.00013698,2]
[353366590,1739801443005,-151.0,0.00013698,2]
[353366591,1739801443015,-151.0,0.00013698,2]
[353366592,1739801443025,-151.0,0.00013698,2]
[353366594,1739801443035,-151.0,0.00013698,2]
[353366595,1739801443045,-151.0,0.00013698,2]
[353366597,1739801443054,-257.096863,0.00013698,2]
[353366598,1739801443064,-563.74,0.00013698,2]
[353366599,1739801443073,-500.0,0.00013698,2]
[353366600,1739801443083,-827.97,0.00013698,2]
[353366601,1739801443092,-500.0,0.00013698,2]
[353366602,1739801443102,-152.852518,0.00013698,2]
[353366603,1739801443111,-500.0,0.00013698,2]
[353366604,1739801443121,-156.543895,0.00013698,2]
[353366605,1739801443131,-156.680195,0.00013698,2]
[353366606,1739801443140,-151.0,0.00013698,2]
[353366607,1739801443149,-151.0,0.00013698,2]